bitfinex/quotes_SOLUSD_20240614
["timestamp","ask_amount","ask_price","bid_price","bid_amount"]
[1718370061107,2.4948,148.31,148.26,6.12]
[1718370061621,2.4948,148.31,148.26,8.6155]
[1718370062812,223.6712,148.35,148.26,8.6155]
[1718370062813,16.3312,148.4,148.3,6.12]
[1718370063015,8.09802314,148.39,148.34,8.6142]
[1718370063211,16.71152314,148.39,148.34,6.12]
[1718370063399,8.09802314,148.38,148.34,6.12]
[1718370063597,8.09802314,148.38,148.29,21.5492]
[1718370063598,6.12,148.35,148.29,21.5492]
[1718370063801,2.4946,148.32,148.3,6.12]
[1718370064103,2.4946,148.32,148.29,27.6692]
[1718370064302,2.4943,148.34,148.29,27.6692]
[1718370064613,8.9541,148.35,148.29,30.1642]
[1718370064791,2.8341,148.35,148.3,6.12]
[1718370064987,2.6641,148.35,148.3,6.12]
[1718370065299,2.4943,148.34,148.3,6.12]
[1718370066131,2.4941,148.35,148.3,6.12]
[1718370067221,2.4943,148.34,148.29,27.6692]
[1718370067386,8.6141,148.35,148.29,30.1642]
[1718370067789,8.6141,148.35,148.29,27.6692]
[1718370067989,2.4942,148.34,148.29,30.1642]
[1718370068190,2.4942,148.34,148.29,27.6692]
[1718370068620,0.17,148.35,148.3,2.4949]
[1718370068818,0.17,148.35,148.3,8.6149]
[1718370069022,0.68,148.35,148.3,8.6149]
[1718370069224,121.565,148.39,148.29,21.5492]
[1718370069399,2.4937,148.37,148.32,8.6145]
[1718370069602,28.6136,148.38,148.32,8.6145]
[1718370070037,2.4934,148.39,148.33,6.12]
[1718370070218,8.6134,148.39,148.33,8.6143]
[1718370070824,8.6135,148.38,148.32,2.4945]
[1718370071006,8.6135,148.38,148.33,6.12]
[1718370071622,6.12,148.38,148.33,8.6143]
[1718370071809,8.6134,148.39,148.33,8.6143]
[1718370072304,6.12,148.39,148.34,8.6142]
[1718370072710,8.6134,148.39,148.34,8.6142]
[1718370073021,8.6134,148.39,148.34,6.12]
[1718370073919,2.494,148.36,148.31,28.6147]
[1718370074127,8.6138,148.37,148.31,28.6147]
[1718370075123,6.12,148.37,148.31,28.6147]
[1718370075318,2.4944,148.33,148.29,21.5492]
[1718370075512,2.4945,148.33,148.29,15.1064]
[1718370075928,8.7843,148.34,148.29,15.1064]
[1718370076628,8.7843,148.34,148.25,23.8518]
[1718370076629,8.6144,148.33,148.27,2.4954]
[1718370076826,8.6144,148.33,148.28,2.4952]
[1718370077436,8.6144,148.33,148.27,8.6153]
[1718370077612,2.4944,148.33,148.28,8.6152]
[1718370077812,6.46,148.34,148.27,4.9907]
[1718370077813,0.34,148.34,148.27,4.9907]
[1718370078020,2.8342,148.35,148.3,6.12]
[1718370079536,9.9739,148.39,148.27,32.477]
[1718370079537,116.2608,148.4,148.32,6.12]
[1718370079732,2.4936,148.38,148.34,6.12]
[1718370079931,2.4935,148.39,148.35,6.12]
[1718370080121,2.4935,148.39,148.34,6.12]
[1718370080319,0.33333333,148.38,148.34,6.12]
[1718370080817,2.82693333,148.38,148.34,6.12]
[1718370081238,2.82693333,148.38,148.33,2.4943]
[1718370081239,0.33333333,148.38,148.33,8.6143]
[1718370081921,0.33333333,148.38,148.31,15.5678]
[1718370082130,6.45333333,148.38,148.32,6.12]
[1718370082335,2.4938,148.37,148.32,8.6146]
[1718370082523,8.6137,148.38,148.32,8.6146]
[1718370082724,0.33333333,148.36,148.33,6.12]
[1718370083530,2.82723333,148.36,148.33,6.12]
[1718370083736,2.82723333,148.36,148.32,6.12]
[1718370083935,2.82723333,148.36,148.31,21.6878]
[1718370084642,2.82723333,148.36,148.31,24.1825]
[1718370085026,0.33333333,148.36,148.31,24.1825]
[1718370085344,0.33333333,148.36,148.31,18.0625]
[1718370085529,0.33333333,148.36,148.31,24.1825]
[1718370086443,2.82723333,148.36,148.31,24.1825]
[1718370086641,2.4941,148.35,148.29,2.4949]
[1718370086943,2.4943,148.34,148.29,28.6149]
[1718370087125,2.82763333,148.34,148.29,8.6149]
[1718370087327,0.33333333,148.34,148.29,8.6149]
[1718370087846,0.33333333,148.34,148.3,2.4949]
[1718370088624,0.33333333,148.34,148.31,2.4947]
[1718370089626,0.33333333,148.34,148.3,8.6148]
[1718370090148,0.33333333,148.34,148.31,2.4947]
[1718370090448,0.33333333,148.34,148.31,6.12]
[1718370090649,0.33333333,148.34,148.3,6.12]
[1718370091448,0.33333333,148.34,148.29,8.615]
[1718370091949,0.33333333,148.34,148.3,2.4949]
[1718370092254,0.33333333,148.34,148.31,8.6147]
[1718370092758,0.33333333,148.34,148.3,8.6148]
[1718370093839,0.33333333,148.34,148.31,2.4947]
[1718370094035,0.33333333,148.34,148.33,6.12]
[1718370094343,0.33333333,148.34,148.33,8.6144]
[1718370096361,0.33333333,148.34,148.33,6.12]
[1718370097440,0.33333333,148.34,148.33,8.6144]
[1718370098962,0.33333333,148.34,148.33,2.4944]
[1718370099259,0.33333333,148.34,148.33,8.6144]
[1718370101742,0.33333333,148.34,148.33,6.12]
[1718370102263,0.33333333,148.34,148.33,8.6144]
[1718370103759,0.33333333,148.34,148.33,6.12]
[1718370105573,0.33333333,148.34,148.33,8.6144]
[1718370106872,0.33333333,148.34,148.33,6.12]
[1718370110881,2.4943,148.34,148.31,6.12]
[1718370111580,2.4943,148.34,148.29,20.0]
[1718370111760,2.4943,148.34,148.3,6.12]
[1718370111959,2.4946,148.32,148.28,6.3348]
[1718370112167,2.4949,148.3,148.27,15.3533]
[1718370112393,2.4949,148.3,148.24,6.6507]
[1718370112549,11.109,148.33,148.23,17.7451]
[1718370112550,5.1596,148.31,148.23,17.7451]
[1718370112880,6.12,148.28,148.23,23.8651]
[1718370113172,2.495,148.3,148.24,8.6159]
[1718370114264,0.33333333,148.29,148.25,20.0]
[1718370114768,0.33333333,148.29,148.25,22.4957]
[1718370115965,0.33333333,148.29,148.25,2.4957]
[1718370116972,0.33333333,148.29,148.24,2.4958]
[1718370117682,0.33333333,148.29,148.25,2.4957]
[1718370118176,0.33333333,148.29,148.26,2.4956]
[1718370118575,0.33333333,148.29,148.27,2.4954]
[1718370118791,0.33333333,148.29,148.28,2.4952]
[1718370118960,0.33333333,148.29,148.26,2.4955]
[1718370119153,0.33333333,148.29,148.27,2.4953]
[1718370120582,0.33333333,148.29,148.26,2.4955]
[1718370122077,6.45333333,148.29,148.24,20.0]
[1718370122285,6.45333333,148.29,148.25,2.4957]
[1718370122490,8.94843333,148.29,148.24,22.4958]
[1718370122656,2.82843333,148.29,148.24,20.0]
[1718370122859,6.12,148.27,148.24,2.4959]
[1718370123281,0.33333333,148.26,148.22,26.12]
[1718370123457,0.33333333,148.26,148.24,2.4959]
[1718370123958,0.33333333,148.26,148.23,2.496]
[1718370124374,0.33333333,148.26,148.24,2.4959]
[1718370125378,0.33333333,148.26,148.25,2.4957]
[1718370125976,0.33333333,148.26,148.25,7.4872]
[1718370126205,0.33333333,148.26,148.25,51.0776]
[1718370126568,0.33333333,148.26,148.25,67.9413]
[1718370126761,0.33333333,148.26,148.25,68.1113]
[1718370127668,0.33333333,148.26,148.25,74.4997]
[1718370128973,0.33333333,148.26,148.25,74.1597]
[1718370129174,0.33333333,148.26,148.25,73.8197]
[1718370129883,0.33333333,148.26,148.25,68.3797]
[1718370130104,0.33333333,148.26,148.25,74.4997]
[1718370130287,0.33333333,148.26,148.25,74.3297]
[1718370130486,0.33333333,148.26,148.25,73.8197]
[1718370134576,0.33333333,148.26,148.25,56.3493]
[1718370134781,0.33333333,148.26,148.25,73.8197]
[1718370135883,0.33333333,148.26,148.25,73.9897]
[1718370136080,0.33333333,148.26,148.25,74.4997]
[1718370138983,16.6431,148.38,148.32,2.4944]
[1718370139188,25.2568,148.38,148.32,8.6144]
[1718370139400,16.6431,148.38,148.33,2.4943]
[1718370139598,22.7631,148.38,148.33,2.4943]
[1718370140099,25.2567,148.38,148.32,8.6145]
[1718370140602,25.2567,148.38,148.33,2.4944]
[1718370140792,25.2567,148.38,148.32,2.4945]
[1718370140989,2.4937,148.37,148.32,22.4945]
[1718370141294,2.4937,148.37,148.32,28.6145]
[1718370141481,8.6137,148.37,148.32,22.4945]
[1718370143987,6.12,148.37,148.32,22.4945]
[1718370145292,19.1367,148.38,148.32,22.4945]
[1718370145499,6.12,148.37,148.32,22.4945]
[1718370145806,6.12,148.37,148.33,2.4944]
[1718370146195,25.2567,148.38,148.33,2.4944]
[1718370146507,25.2567,148.38,148.32,8.6145]
[1718370146695,6.12,148.37,148.32,2.4945]
[1718370147313,6.12,148.37,148.33,2.4944]
[1718370149592,17.1531,148.38,148.31,20.0]
[1718370149907,17.1531,148.38,148.31,2.4947]
[1718370149908,6.12,148.34,148.31,2.4947]
[1718370150081,6.12,148.35,148.31,2.4947]
[1718370150910,2.8338,148.37,148.32,2.4945]
[1718370151286,0.17,148.37,148.33,2.4944]
[1718370151486,6.12,148.37,148.33,2.4944]
[1718370152903,6.12,148.37,148.32,8.6144]
[1718370153711,0.17,148.39,148.33,2.4943]
[1718370153917,2.4935,148.39,148.34,2.4942]
[1718370154228,18.4022,148.42,148.37,2.4937]
[1718370154523,24.5222,148.42,148.36,8.6138]
[1718370154691,8.6131,148.41,148.36,8.6138]
[1718370155289,2.4931,148.41,148.36,2.4938]
[1718370155493,8.6131,148.41,148.36,8.6138]
[1718370156245,2.4929,148.42,148.37,2.4936]
[1718370156421,6.12,148.42,148.37,8.6136]
[1718370156602,8.6129,148.42,148.37,2.4936]
[1718370157699,8.6129,148.42,148.36,8.6138]
[1718370158005,2.4928,148.43,148.37,8.6137]
[1718370158206,6.12,148.42,148.37,8.6137]
[1718370158716,8.6129,148.42,148.37,8.6137]
[1718370159116,2.4929,148.42,148.37,8.6137]
[1718370159623,2.4929,148.42,148.35,40.7534]
[1718370159624,2.4926,148.44,148.38,28.6134]
[1718370159832,2.4927,148.43,148.38,26.12]
[1718370160033,2.4927,148.43,148.38,28.6135]
[1718370160537,8.6127,148.43,148.38,28.6135]
[1718370162111,2.4926,148.44,148.39,2.4934]
[1718370162506,2.4927,148.43,148.38,28.6134]
[1718370162707,2.4926,148.44,148.39,2.4934]
[1718370163750,2.4928,148.43,148.38,28.6135]
[1718370164033,2.4929,148.42,148.38,20.0]
[1718370164805,2.4928,148.43,148.38,22.4935]
[1718370165134,2.4928,148.43,148.38,2.4935]
[1718370166325,2.6626,148.44,148.39,2.4934]
[1718370168551,0.17,148.44,148.36,18.5895]
[1718370168726,6.12,148.4,148.35,22.3623]
[1718370168914,6.12,148.4,148.36,2.4938]
[1718370169313,6.12,148.4,148.37,2.4937]
[1718370170432,6.12,148.41,148.39,2.4934]
[1718370171337,6.12,148.41,148.36,2.4938]
[1718370171651,6.12,148.39,148.35,2.494]
[1718370171954,8.6136,148.38,148.33,2.4943]
[1718370172124,6.12,148.37,148.34,2.4942]
[1718370174243,6.12,148.37,148.33,2.4943]
[1718370174433,18.8851,148.4,148.35,2.4941]
[1718370174638,6.12,148.39,148.35,2.4941]
[1718370174830,8.6134,148.39,148.34,2.4942]
[1718370175033,6.12,148.39,148.33,6.12]
[1718370175240,6.12,148.39,148.35,2.494]
[1718370176059,16.3918,148.4,148.36,2.4939]
[1718370176357,6.12,148.39,148.36,2.4939]
[1718370176662,2.4931,148.41,148.36,2.4939]
[1718370176844,65.17,148.42,148.36,2.4939]
[1718370177040,6.12,148.39,148.36,2.4939]
[1718370177246,2.8331,148.41,148.36,2.4939]
[1718370177464,6.12,148.39,148.36,2.4939]
[1718370177833,6.12,148.39,148.35,2.494]
[1718370178782,6.12,148.39,148.33,6.12]
[1718370178937,6.12,148.39,148.34,2.4941]
[1718370179139,6.12,148.38,148.34,2.4941]
[1718370179954,6.12,148.37,148.33,22.4944]
[1718370180152,8.6137,148.37,148.32,22.4945]
[1718370180357,4.9872,148.38,148.31,6.112]
[1718370180549,4.9872,148.38,148.31,2.4947]
[1718370180550,6.12,148.34,148.31,2.4947]
[1718370180954,6.12,148.35,148.31,2.4947]
[1718370181358,8.6141,148.35,148.3,2.4948]
[1718370181559,6.12,148.34,148.3,2.4948]
[1718370181764,6.12,148.34,148.31,2.4947]
[1718370183847,6.12,148.34,148.3,20.0]
[1718370183848,6.12,148.34,148.3,22.4948]
[1718370184179,6.12,148.33,148.3,2.4948]
[1718370184360,6.12,148.33,148.29,22.495]
[1718370184561,6.12,148.33,148.3,2.4948]
[1718370187356,6.12,148.33,148.31,2.4947]
[1718370187563,6.12,148.33,148.29,20.0]
[1718370187564,6.12,148.33,148.3,2.4948]
[1718370187756,6.12,148.33,148.31,2.4947]
[1718370189469,6.12,148.35,148.31,2.4947]
[1718370189650,6.12,148.35,148.32,2.4946]
[1718370189849,6.12,148.35,148.31,2.4946]
[1718370190073,8.6141,148.35,148.32,2.4945]
[1718370190294,13.6024,148.35,148.31,24.9469]
[1718370190564,6.12,148.32,148.29,4.9899]
[1718370190782,6.12,148.31,148.3,2.4949]
[1718370190963,6.12,148.31,148.29,24.9502]
[1718370191368,6.12,148.31,148.3,2.4949]
[1718370193686,6.12,148.31,148.29,7.485]
[1718370194188,6.12,148.31,148.3,2.4949]
[1718370194485,6.12,148.31,148.3,7.4847]
[1718370198194,6.12,148.31,148.3,14.9695]
[1718370198691,7.4831,148.34,148.31,2.4947]
[1718370198869,6.12,148.32,148.3,24.949]
[1718370199283,6.12,148.32,148.3,14.9694]
[1718370199473,6.12,148.32,148.29,24.9498]
[1718370199795,6.12,148.31,148.29,22.4549]
[1718370200085,6.12,148.31,148.3,2.4949]
[1718370200479,6.12,148.31,148.3,7.4847]
[1718370202081,6.12,148.31,148.29,22.4549]
[1718370202288,6.12,148.31,148.3,2.4949]
[1718370202867,6.12,148.31,148.3,14.9695]
[1718370203389,6.12,148.31,148.3,7.4847]
[1718370203699,6.12,148.31,148.3,2.4949]
[1718370206183,6.12,148.31,148.29,24.9496]
[1718370206381,6.12,148.31,148.29,22.4547]
[1718370206702,6.12,148.31,148.29,24.9496]
[1718370207106,6.12,148.31,148.29,22.4547]
[1718370207308,22.4474,148.35,148.3,7.4848]
[1718370207523,22.4474,148.35,148.28,16.4713]
[1718370207524,12.4723,148.33,148.28,16.4713]
[1718370207684,6.12,148.31,148.29,2.495]
[1718370207887,6.12,148.31,148.29,7.4852]
[1718370208185,6.12,148.31,148.29,2.495]
[1718370208387,6.12,148.31,148.28,41.4228]
[1718370209006,6.12,148.31,148.29,2.4951]
[1718370209699,8.615,148.3,148.26,17.4688]
[1718370209887,6.12,148.29,148.27,7.4861]
[1718370210211,6.12,148.28,148.25,4.9912]
[1718370210386,6.12,148.27,148.26,2.4956]
[1718370210589,6.12,148.27,148.25,22.4616]
[1718370210799,6.12,148.27,148.26,2.4956]
[1718370211194,6.12,148.27,148.25,24.9573]
[1718370211392,6.12,148.27,148.26,2.4956]
[1718370211785,6.12,148.27,148.26,7.4868]
[1718370212583,6.12,148.27,148.26,2.4956]
[1718370212786,6.12,148.27,148.25,7.4869]
[1718370213505,6.12,148.27,148.25,14.9742]
[1718370213692,2.4952,148.29,148.26,2.4956]
[1718370213899,2.4948,148.31,148.28,2.4952]
[1718370214296,6.12,148.29,148.28,7.4857]
[1718370214633,6.12,148.29,148.27,7.4861]
[1718370214789,6.12,148.29,148.28,2.4952]
[1718370215118,6.12,148.29,148.27,24.9539]
[1718370215485,6.12,148.29,148.27,7.486]
[1718370215685,6.12,148.29,148.27,22.4587]
[1718370216188,6.12,148.29,148.27,24.9539]
[1718370216488,6.12,148.29,148.27,7.486]
[1718370217091,6.12,148.29,148.27,2.4952]
[1718370217817,2.4949,148.3,148.27,7.486]
[1718370217991,2.4949,148.3,148.27,2.4952]
[1718370218191,6.12,148.29,148.27,2.4952]
[1718370218416,8.6151,148.29,148.26,2.4955]
[1718370218996,8.6151,148.29,148.26,7.4867]
[1718370219200,6.12,148.28,148.25,24.9568]
[1718370220019,23.5887,148.27,148.23,2.496]
[1718370220224,6.12,148.26,148.23,7.488]
[1718370220429,13.6068,148.26,148.22,22.4658]
[1718370220599,6.12,148.25,148.23,7.4882]
[1718370220799,8.6156,148.26,148.23,7.4882]
[1718370221014,6.12,148.26,148.23,7.4882]
[1718370221710,8.6156,148.26,148.23,7.4882]
[1718370221922,6.12,148.26,148.23,7.4882]
[1718370223407,8.6156,148.26,148.23,7.4882]
[1718370224426,6.12,148.25,148.23,7.4882]
[1718370225101,6.12,148.25,148.23,14.9765]
[1718370226524,6.12,148.26,148.24,14.9754]
[1718370226832,6.12,148.26,148.24,2.4959]
[1718370227627,6.12,148.26,148.24,7.4878]
[1718370227820,6.12,148.26,148.24,2.4959]
[1718370228331,6.12,148.26,148.23,24.9603]
[1718370228515,6.12,148.26,148.23,22.4644]
[1718370228718,6.12,148.26,148.24,2.4959]
[1718370231937,6.12,148.26,148.23,24.9603]
[1718370232140,6.12,148.26,148.24,2.4959]
[1718370232324,6.12,148.26,148.23,24.9603]
[1718370232727,6.12,148.26,148.24,2.4959]
[1718370239042,6.12,148.26,148.24,7.4877]
[1718370240251,6.12,148.26,148.24,2.4959]
[1718370241234,6.12,148.26,148.23,24.9603]
[1718370241438,6.12,148.26,148.23,7.4879]
[1718370241644,6.12,148.25,148.23,7.4879]
[1718370241944,6.12,148.25,148.24,7.4878]
[1718370242126,6.12,148.26,148.24,7.4878]
[1718370242555,6.12,148.26,148.24,2.4959]
[1718370243027,6.12,148.26,148.24,7.4877]
[1718370243421,0.17,148.31,148.22,6.12]
[1718370243622,22.7934,148.31,148.27,2.4953]
[1718370243858,6.12,148.29,148.26,19.9638]
[1718370244055,6.12,148.29,148.27,2.4954]
[1718370244845,2.4948,148.31,148.28,2.4952]
[1718370245052,8.6148,148.31,148.28,2.4952]
[1718370245224,6.12,148.3,148.28,2.4952]
[1718370245563,2.4951,148.29,148.26,2.4955]
[1718370245736,13.6053,148.29,148.26,2.4955]
[1718370246051,6.12,148.28,148.26,2.4955]
[1718370247523,6.12,148.28,148.26,7.4866]
[1718370248527,6.12,148.28,148.26,14.9734]
[1718370248725,6.12,148.29,148.27,2.4954]
[1718370249031,116.5779,148.34,148.28,14.9714]
[1718370249032,24.9467,148.32,148.28,14.9714]
[1718370249233,6.12,148.3,148.28,22.4572]
[1718370249459,6.12,148.3,148.28,7.4855]
[1718370249760,6.12,148.3,148.28,2.4951]
[1718370249924,13.605,148.3,148.26,22.4597]
[1718370250133,2.4951,148.29,148.26,17.4687]
[1718370250337,2.4951,148.29,148.26,7.4866]
[1718370250538,8.6151,148.29,148.26,7.4866]
[1718370250949,6.12,148.29,148.27,2.4954]
[1718370255353,2.4956,148.26,148.23,2.496]
[1718370255654,8.6156,148.26,148.23,7.4881]
[1718370256072,6.12,148.26,148.23,7.4881]
[1718370256254,28.5804,148.26,148.22,24.9617]
[1718370256448,6.12,148.25,148.22,14.9772]
[1718370256844,6.12,148.25,148.22,7.4884]
[1718370257054,6.12,148.25,148.22,14.9772]
[1718370257374,6.12,148.25,148.23,2.496]
[1718370257865,8.6158,148.25,148.22,2.4961]
[1718370258163,6.12,148.24,148.21,25.0635]
[1718370258751,6.12,148.23,148.21,0.1]
[1718370258951,6.12,148.22,148.21,0.1]
[1718370259872,6.12,148.22,148.21,2.5964]
[1718370260171,2.496,148.24,148.21,7.5892]
[1718370260358,6.12,148.23,148.21,7.5892]
[1718370260945,6.12,148.23,148.21,2.5964]
[1718370262570,6.12,148.22,148.21,7.5893]
[1718370265071,6.12,148.22,148.21,2.5964]
[1718370266683,7.4879,148.24,148.21,2.5964]
[1718370266969,14.9758,148.24,148.21,2.5964]
[1718370267165,6.12,148.23,148.21,2.5964]
[1718370267950,6.12,148.23,148.21,0.1]
[1718370268147,8.6161,148.23,148.21,0.1]
[1718370268346,6.12,148.23,148.21,2.5964]
[1718370268547,8.6161,148.23,148.21,0.1]
[1718370269357,6.12,148.22,148.21,2.5964]
[1718370269769,6.12,148.22,148.21,0.1]
[1718370270275,6.12,148.22,148.21,2.5964]
[1718370272686,6.12,148.22,148.21,0.1]
[1718370272869,6.12,148.22,148.21,2.5964]
[1718370276589,6.12,148.22,148.21,7.5893]
[1718370277965,6.12,148.22,148.21,2.5964]
[1718370278663,6.12,148.22,148.21,7.5893]
[1718370279760,2.496,148.24,148.21,7.5893]
[1718370279963,6.12,148.22,148.21,15.0786]
[1718370280174,6.12,148.22,148.21,7.5893]
[1718370281098,6.12,148.22,148.21,2.5964]
[1718370281304,6.12,148.23,148.21,2.5964]
[1718370287416,6.12,148.22,148.21,2.5964]
[1718370288212,6.12,148.22,148.21,7.5893]
[1718370288890,6.12,148.23,148.21,7.5893]
[1718370289085,109.22298158,148.3,148.21,0.1]
[1718370289285,8.6154,148.27,148.24,7.4876]
[1718370289488,8.6154,148.27,148.24,14.9754]
[1718370289702,13.6063,148.27,148.24,7.4876]
[1718370290510,13.6063,148.27,148.24,2.4958]
[1718370290706,13.6068,148.26,148.23,2.496]
[1718370291291,13.6068,148.26,148.23,7.4882]
[1718370292310,13.6068,148.26,148.23,2.496]
[1718370294806,21.0936,148.26,148.23,2.496]
[1718370296125,14.9736,148.26,148.23,2.496]
[1718370296512,21.0936,148.26,148.23,2.496]
[1718370297406,6.12,148.25,148.23,2.496]
[1718370298824,7.4868,148.26,148.23,2.496]
[1718370299026,24.9551,148.27,148.24,2.4959]
[1718370299327,6.12,148.26,148.23,24.9608]
[1718370299538,2.4956,148.26,148.23,24.9608]
[1718370300415,121.7608,148.32,148.23,16.3719]
[1718370300640,100.0,148.32,148.23,16.3719]
[1718370300932,6.12,148.33,148.3,22.4541]
[1718370301232,22.449,148.34,148.3,22.4541]
[1718370301233,11.1085,148.34,148.3,22.454]
[1718370301417,2.4946,148.32,148.29,2.495]
[1718370301624,7.4839,148.32,148.29,2.495]
[1718370301926,8.6146,148.32,148.29,14.9705]
[1718370302129,13.6038,148.32,148.29,7.4852]
[1718370302349,2.4948,148.31,148.28,22.4572]
[1718370302500,2.4948,148.31,148.28,24.9523]
[1718370302806,6.12,148.32,148.29,12.4752]
[1718370303009,13.6039,148.32,148.29,2.495]
[1718370303407,13.6039,148.32,148.29,7.4851]
[1718370303607,7.4829,148.34,148.31,2.4947]
[1718370303808,8.6143,148.34,148.31,14.9684]
[1718370304028,8.6143,148.34,148.31,7.4841]
[1718370304522,13.6028,148.34,148.31,7.484]
[1718370304706,8.6143,148.34,148.31,7.484]
[1718370305211,8.6143,148.34,148.31,14.9683]
[1718370305416,13.6028,148.34,148.31,7.484]
[1718370305733,13.6028,148.34,148.31,2.4946]
[1718370306308,21.0856,148.34,148.31,2.4946]
[1718370306626,13.6028,148.34,148.31,7.4841]
[1718370306929,13.6028,148.34,148.31,2.4946]
[1718370307117,2.4944,148.33,148.3,24.9483]
[1718370307917,14.9666,148.33,148.3,2.4948]
[1718370308333,12.4722,148.33,148.3,2.4948]
[1718370308539,14.9667,148.33,148.3,2.4948]
[1718370309927,2.4944,148.33,148.3,24.9489]
[1718370310440,6.12,148.34,148.26,15.6101]
[1718370310625,2.4948,148.31,148.28,24.9519]
[1718370310817,24.9464,148.32,148.29,2.4951]
[1718370311014,2.4947,148.31,148.28,24.9519]
[1718370311310,7.484,148.32,148.29,2.4951]
[1718370311812,2.4947,148.32,148.29,7.4852]
[1718370312011,7.4839,148.32,148.29,2.4951]
[1718370312514,2.4947,148.32,148.29,7.4852]
[1718370312717,24.9452,148.33,148.3,2.4949]
[1718370312941,31.0652,148.33,148.3,2.4949]
[1718370315147,13.6036,148.33,148.3,2.4949]
[1718370315335,8.6145,148.33,148.3,14.9693]
[1718370315534,13.6033,148.33,148.3,7.4846]
[1718370316522,8.6145,148.33,148.3,7.4846]
[1718370316744,8.6145,148.33,148.3,14.9694]
[1718370316946,17.6292,148.35,148.3,7.4847]
[1718370317119,13.6028,148.34,148.31,2.4947]
[1718370317324,21.0856,148.34,148.31,2.4947]
[1718370317539,2.4944,148.33,148.3,24.9484]
[1718370318226,2.4946,148.32,148.29,22.4554]
[1718370318428,2.4946,148.32,148.28,2.4952]
[1718370318429,7.4843,148.31,148.28,2.4952]
[1718370318655,13.6043,148.31,148.28,2.4952]
[1718370319056,0.17,148.35,148.26,15.6101]
[1718370319232,2.4945,148.33,148.3,2.4949]
[1718370319431,28.5693,148.34,148.3,12.4745]
[1718370319740,21.0877,148.32,148.28,24.9515]
[1718370320069,2.4948,148.31,148.28,7.4855]
[1718370320355,0.33333334,148.3,148.28,7.4855]
[1718370320949,8.94823334,148.3,148.27,2.4953]
[1718370321155,7.4859,148.28,148.24,15.2321]
[1718370321337,13.6069,148.26,148.23,2.496]
[1718370321541,2.4958,148.25,148.22,2.4962]
[1718370321848,0.33333334,148.24,148.22,14.9775]
[1718370322055,0.33333334,148.24,148.23,2.4961]
[1718370322537,0.33333334,148.24,148.23,24.961]
[1718370330055,0.33333334,148.24,148.23,7.4883]
[1718370330260,6.45333334,148.24,148.23,2.4961]
[1718370330463,6.45333334,148.24,148.21,2.5963]
[1718370330650,6.12,148.22,148.21,2.5963]
[1718370331151,6.45333334,148.22,148.21,7.5892]
[1718370332551,0.33333334,148.22,148.21,7.5892]
[1718370332867,0.33333334,148.22,148.21,15.0785]
[1718370333062,0.33333334,148.22,148.21,25.0643]
[1718370333239,0.33333334,148.22,148.21,17.575]
[1718370333444,0.33333334,148.22,148.21,7.5892]
[1718370335053,0.33333334,148.22,148.21,2.5963]
[1718370335254,0.33333334,148.22,148.21,0.1]
[1718370335460,0.33333334,148.22,148.21,2.5964]
[1718370339072,0.33333334,148.22,148.21,0.1]